fUST/lending_fUST_20250227
["ID","MTS","AMOUNT","RATE_DAILY","PERIOD"]
[354672521,1740611444965,-500.0,0.00049589,120]
[354672522,1740611444975,-1926.16,0.00049589,120]
[354672523,1740611444984,-645.473546,0.00049589,120]
[354672524,1740611444993,-645.473546,0.00049589,120]
[354672525,1740611445002,-500.0,0.00049589,120]
[354672526,1740611445011,-840.78,0.00049589,120]
[354672527,1740611445020,-1825.54,0.00049589,120]
[354672528,1740611445030,-500.0,0.00049589,120]
[354672529,1740611445039,-3630.41,0.00049589,120]
[354672530,1740611445048,-1759.49,0.00049589,120]
[354672531,1740611445057,-151.0,0.00049589,120]
[354672532,1740611445066,-500.0,0.00049589,120]
[354672533,1740611445075,-1909.41,0.00049589,120]
[354672534,1740611445085,-802.59,0.00049589,120]
[354672535,1740611445094,-500.0,0.00049589,120]
[354672536,1740611445104,-1679.68,0.00049589,120]
[354672537,1740611445115,-500.0,0.00049589,120]
[354672538,1740611445125,-501.78935841,0.00049589,120]
[354672539,1740611445135,-1833.32,0.00049589,120]
[354672540,1740611445145,-500.0,0.00049589,120]
[354672541,1740611445154,-500.0,0.00049589,120]
[354672542,1740611445164,-861.71,0.00049589,120]
[354672543,1740611445174,-795.48,0.00049589,120]
[354672544,1740611445183,-500.0,0.00049589,120]
[354672545,1740611445275,-814.85,0.00049589,120]
[354672546,1740611445289,-709.72,0.00049589,120]
[354672547,1740611445299,-605.13308051,0.00049589,120]
[354672548,1740611445308,-500.0,0.00049589,120]
[354672549,1740611445317,-1047.97,0.00049589,120]
[354672550,1740611445327,-2603.14,0.00049589,120]
[354672551,1740611445337,-500.0,0.00049589,120]
[354672552,1740611445346,-500.0,0.00049589,120]
[354672553,1740611445356,-1782.86,0.00049589,120]
[354672554,1740611445366,-1625.3,0.00049589,120]
[354672555,1740611445376,-1475.86,0.00049589,120]
[354672556,1740611445386,-896.39,0.00049589,120]
[354672557,1740611445395,-585.69,0.00049589,120]
[354672558,1740611445405,-670.61,0.00049589,120]
[354672559,1740611445414,-727.2,0.00049589,120]
[354672560,1740611445423,-151.0,0.00049589,120]
[354672561,1740611445433,-151.0,0.00049589,120]
[354672562,1740611445442,-500.0,0.00049589,120]
[354672563,1740611445452,-533.28,0.00049589,120]
[354672564,1740611445461,-151.0,0.00049589,120]
[354672565,1740611445470,-151.0,0.00049589,120]
[354672566,1740611445480,-151.0,0.00049589,120]
[354672567,1740611445489,-151.0,0.00049589,120]
[354672568,1740611445498,-500.0,0.00049589,120]
[354672569,1740611445507,-151.0,0.00049589,120]
[354672570,1740611445517,-500.0,0.00049589,120]
[354672571,1740611445527,-977.14,0.00049589,120]
[354672572,1740611445536,-151.0,0.00049589,120]
[354672573,1740611445546,-1376.25,0.00049589,120]
[354672574,1740611445556,-578.58,0.00049589,120]
[354672575,1740611445565,-500.0,0.00049589,120]
[354672576,1740611445574,-1319.48,0.00049589,120]
[354672577,1740611445584,-759.45,0.00049589,120]
[354672578,1740611445593,-151.0,0.00049589,120]
[354672579,1740611445603,-151.0,0.00049589,120]
[354672580,1740611445612,-1036.71,0.00049589,120]
[354672581,1740611445622,-501.28792855,0.00049589,120]
[354672582,1740611445631,-500.0,0.00049589,120]
[354672583,1740611445640,-2165.35,0.00049589,120]
[354672584,1740611445650,-844.46,0.00049589,120]
[354672585,1740611445659,-500.0,0.00049589,120]
[354672586,1740611445669,-639.06,0.00049589,120]
[354672587,1740611445679,-505.1561319,0.00049589,120]
[354672588,1740611445688,-500.0,0.00049589,120]
[354672589,1740611445699,-500.0,0.00049589,120]
[354672590,1740611445708,-500.0,0.00049589,120]
[354672591,1740611445719,-500.0,0.00049589,120]
[354672592,1740611445735,-500.0,0.00049589,15]
[354672593,1740611445745,-878.22,0.00049589,120]
[354672594,1740611445755,-500.0,0.00049589,120]
[354672595,1740611445764,-854.77,0.00049589,120]
[354672596,1740611445774,-500.0,0.00049589,120]
[354672597,1740611445783,-500.0,0.00049589,120]
[354672598,1740611445793,-500.0,0.00049589,120]
[354672599,1740611445814,-3779.54,0.00049589,120]
[354672600,1740611445824,-500.0,0.00049589,120]
[354672601,1740611445833,-500.0,0.00049589,120]
[354672602,1740611445843,-501.98306001,0.00049589,120]
[354672603,1740611445853,-267.847665,0.00049589,120]
[354672604,1740611445862,-267.847665,0.00049589,120]
[354672605,1740611445872,-500.0,0.00049589,120]
[354672606,1740611445882,-500.0,0.00049589,120]
[354672607,1740611445891,-1687.82,0.00049589,120]
[354672608,1740611445901,-267.847665,0.00049589,120]
[354672609,1740611445911,-267.847665,0.00049589,120]
[354672610,1740611445920,-2880.14,0.00049589,120]
[354672611,1740611445929,-634.97,0.00049589,120]
[354672612,1740611445939,-500.0,0.00049589,120]
[354672613,1740611445950,-500.0,0.00049589,120]
[354672614,1740611445959,-975.89,0.00049589,120]
[354672615,1740611445968,-14186.10536266,0.00049589,120]
[354672616,1740611446004,-4925.65463734,0.00049589,120]
[354672617,1740611446013,-548.76431243,0.00049589,120]
[354672618,1740611446025,-366.21568757,0.00049589,120]
[354672619,1740611446035,-731.19,0.00049589,120]
[354672620,1740611446044,-500.0,0.00049589,120]
[354672621,1740611446053,-151.0,0.00049589,120]
[354672622,1740611446063,-151.0,0.00049589,120]
[354672623,1740611446073,-1009.1,0.00049589,120]
[354672624,1740611446082,-377.47896788,0.00049589,120]
[354672625,1740611446094,-122.52103212,0.00049589,120]
[354672626,1740611446103,-874.87,0.00049589,120]
[354672627,1740611446113,-500.0,0.00049589,120]
[354672628,1740611446122,-151.0,0.00049589,120]
[354672629,1740611446132,-88.65568738,0.00049589,120]
[354672630,1740611446143,-62.34431262,0.00049589,120]
[354672631,1740611446152,-1386.15,0.00049589,120]
[354672632,1740611446162,-845.26,0.00049589,120]
[354672633,1740611446172,-234.54932563,0.00049589,120]
[354672634,1740611446183,-4993.76878199,0.00049589,120]
[354672635,1740611446195,-862.97452756,0.00049589,120]
[354672636,1740611446206,-1281.878382,0.00049589,120]
[354672637,1740611446218,-281.88898282,0.00049589,120]
[354672639,1740611446227,-500.0,0.00049589,120]
[354672641,1740611446236,-503.14,0.00049589,120]
[354672642,1740611446245,-467.40683247,0.00049589,120]
[354672643,1740611446254,-6696.2153273,0.00049589,120]
[354672644,1740611446267,-1642.0846727,0.00049589,120]
[354672645,1740611446276,-650.97,0.00049589,120]
[354672646,1740611446286,-2824.06629005,0.00049589,120]
[354672647,1740611446300,-1194.24370995,0.00049589,120]
[354672648,1740611446309,-1647.08982955,0.00049589,120]
[354672661,1740611446587,-10680.43017045,0.00049589,120]
[354672663,1740611446597,-1055.3,0.00049589,120]
[354672665,1740611446608,-500.0,0.00049589,120]
[354672667,1740611446617,-500.0,0.00049589,120]
[354672669,1740611446627,-927.54894363,0.00049589,6]
[354672671,1740611446639,-10355.71150794,0.00049589,6]
[354672673,1740611446651,-547.67952617,0.00049589,6]
[354672676,1740611446672,-453.40201646,0.00049589,6]
[354672678,1740611446684,-24571.5680058,0.00049589,6]
[354672680,1740611446693,-1351.206835,0.00049589,120]
[354672682,1740611446703,-1351.206835,0.00049589,120]
[354672684,1740611446712,-500.0,0.00049589,45]
[354672687,1740611446722,-1759.67,0.00049589,120]
[354672689,1740611446733,-500.0,0.00049589,120]
[354672691,1740611446743,-3355.82,0.00049589,120]
[354672693,1740611446756,-664.44,0.00049589,120]
[354672694,1740611446771,-3070.94,0.00049589,120]
[354672696,1740611446783,-1051.71,0.00049589,120]
[354672698,1740611446792,-500.0,0.00049589,120]
[354672701,1740611446806,-1351.206835,0.00049589,120]
[354672703,1740611446816,-1351.206835,0.00049589,120]
[354672705,1740611446825,-619.8,0.00049589,120]
[354672707,1740611446834,-856.99,0.00049589,120]
[354672709,1740611446844,-500.0,0.00049589,120]
[354672711,1740611446854,-3867.34,0.00049589,120]
[354672713,1740611446863,-515.8,0.00049589,120]
[354672715,1740611446873,-1012.08,0.00049589,120]
[354672717,1740611446882,-500.0,0.00049589,120]
[354672719,1740611446892,-151.0,0.00049589,120]
[354672720,1740611446901,-1377.87,0.00049589,120]
[354672722,1740611446910,-916.66,0.00049589,120]
[354672724,1740611446919,-151.0,0.00049589,120]
[354672726,1740611446928,-500.0,0.00049589,120]
[354672728,1740611446938,-1819.52,0.00049589,120]
[354672730,1740611446947,-500.0,0.00049589,120]
[354672732,1740611446957,-3676.74,0.00049589,120]
[354672735,1740611446969,-764.14,0.00049589,120]
[354672737,1740611446978,-422.665024,0.00049589,120]
[354672739,1740611446987,-2560.817789,0.00049589,120]
[354672741,1740611446996,-1385.75,0.00049589,120]
[354672743,1740611447006,-422.665024,0.00049589,120]
[354672745,1740611447015,-448.51890191,0.00049589,120]
[354672748,1740611447037,-1069.03893575,0.00049589,120]
[354672751,1740611447056,-892.5796797,0.00049589,120]
[354672755,1740611447078,-150.68027164,0.00049589,120]
[354672758,1740611447097,-500.0,0.00049589,120]
[354672760,1740611447113,-512.98,0.00049589,30]
[354672763,1740611447130,-196.171338,0.00049589,120]
[354672766,1740611447146,-196.171338,0.00049589,120]
[354672768,1740611447159,-500.0,0.00049589,120]
[354672771,1740611447177,-196.171338,0.00049589,120]
[354672774,1740611447195,-3153.7473563,0.00049589,120]
[354672848,1740611447822,-500.0,0.00049315,120]
[354672850,1740611447832,-316.23009757,0.00049589,120]
[354673529,1740611461342,-3656.10254613,0.00049589,120]
[354673530,1740611461357,-196.171338,0.00049589,120]
[354673531,1740611461374,-9629.69,0.00049589,120]
[354673532,1740611461389,-1723.47,0.00049589,120]
[354673533,1740611461404,-11531.12,0.00049589,3]
[354673534,1740611461419,-5537.05,0.00049589,120]
[354673535,1740611461433,-151.0,0.00049589,120]
[354673536,1740611461448,-500.0,0.00049589,120]
[354673537,1740611461463,-500.0,0.00049589,120]
[354673538,1740611461478,-1513.82,0.00049589,120]
[354673539,1740611461493,-151.0,0.00049589,120]
[354673540,1740611461508,-193.464242,0.00049589,120]
[354673541,1740611461521,-1302.01,0.00049589,120]
[354673542,1740611461537,-500.0,0.00049589,120]
[354673543,1740611461551,-558.88,0.00049589,120]
[354673544,1740611461566,-1000.0,0.00049589,2]
[354673545,1740611461580,-500.0,0.00049589,120]
[354673546,1740611461595,-4538.85,0.00049589,120]
[354673547,1740611461700,-1496.06,0.00049589,120]
[354673548,1740611461710,-617.406658,0.00049589,120]
[354673549,1740611461719,-21111.03,0.00049589,120]
[354673550,1740611461729,-1093.67,0.00049589,120]
[354673551,1740611461738,-500.0,0.00049589,120]
[354673552,1740611461747,-617.406658,0.00049589,120]
[354673553,1740611461757,-500.0,0.00049589,120]
[354673554,1740611461766,-151.0,0.00049589,120]
[354673555,1740611461775,-151.0,0.00049589,120]
[354673556,1740611461784,-1635.22,0.00049589,120]
[354673557,1740611461793,-500.0,0.00049589,120]
[354673558,1740611461803,-239.21120581,0.00049589,120]
[354673559,1740611461812,-500.0,0.00049589,120]
[354673560,1740611461821,-571.57,0.00049589,120]
[354673561,1740611461831,-1794.94,0.00049589,120]
[354673562,1740611461840,-1233.1,0.00049589,120]
[354673563,1740611461849,-513.09,0.00049589,120]
[354673564,1740611461859,-500.0,0.00049589,120]
[354673565,1740611461869,-11537.44,0.00049589,120]
[354673566,1740611461879,-3081.52,0.00049589,120]
[354673567,1740611461888,-118597.62,0.00049589,7]
[354673568,1740611461897,-151.0,0.00049589,120]
[354673569,1740611461906,-555.0787665,0.00049589,120]
[354673570,1740611461916,-151.0,0.00049589,120]
[354673571,1740611461925,-500.0,0.00049589,120]
[354673572,1740611461934,-500.0,0.00049589,120]
[354673573,1740611461943,-5821.76,0.00049589,120]
[354673574,1740611461952,-3325.41,0.00049589,120]
[354673575,1740611461961,-500.0,0.00049589,120]
[354673576,1740611461971,-151.0,0.00049589,120]
[354673577,1740611461980,-151.0,0.00049589,120]
[354673578,1740611461989,-185.494885,0.00049589,120]
[354673579,1740611461999,-1036.74,0.00049589,120]
[354673580,1740611462008,-500.0,0.00049589,120]
[354673581,1740611462017,-2877.43,0.00049589,120]
[354673582,1740611462026,-185.494885,0.00049589,120]
[354673583,1740611462035,-1005.91,0.00049589,120]
[354673584,1740611462045,-500.0,0.00049589,120]
[354673585,1740611462054,-1489.25,0.00049589,120]
[354673586,1740611462063,-8691.6,0.00049589,120]
[354673587,1740611462071,-2049.04,0.00049589,120]
[354673588,1740611462081,-1795.99,0.00049589,120]
[354673589,1740611462091,-500.0,0.00049589,120]
[354673590,1740611462099,-153.04610401,0.00049589,120]
[354673591,1740611462108,-872.06,0.00049589,120]
[354673592,1740611462117,-500.0,0.00049589,120]
[354673593,1740611462127,-1405.94,0.00049589,120]
[354673594,1740611462136,-500.0,0.00049589,120]
[354673595,1740611462145,-1815.94,0.00049589,120]
[354673596,1740611462154,-500.0,0.00049589,120]
[354673597,1740611462163,-500.0,0.00049589,120]
[354673598,1740611462173,-586.85,0.00049589,120]
[354673599,1740611462182,-621.65,0.00049589,120]
[354673600,1740611462191,-500.0,0.00049589,120]
[354673601,1740611462200,-1587.27,0.00049589,120]
[354673602,1740611462209,-3342.85,0.00049589,120]
[354673603,1740611462219,-932.33,0.00049589,120]
[354673604,1740611462228,-965.08,0.00049589,120]
[354673605,1740611462237,-500.0,0.00049589,120]
[354673606,1740611462247,-500.0,0.00049589,120]
[354673607,1740611462256,-446.70941758,0.00049589,120]
[354673608,1740611462265,-500.0,0.00049589,120]
[354673609,1740611462275,-827.96,0.00049589,120]
[354673610,1740611462288,-640.705579,0.00049589,120]
[354673611,1740611462298,-856.42,0.00049589,120]
[354673612,1740611462307,-585.93,0.00049589,120]
[354673613,1740611462317,-500.0,0.00049589,120]
[354673614,1740611462327,-500.0,0.0004962,31]
[354673615,1740611462336,-500.0,0.00049688,2]
[354673616,1740611462345,-500.0,0.00049788,2]
[354673617,1740611462355,-14339.01400244,0.00049863,33]
[354673618,1740611462663,-93.467543,0.00049863,33]
[354673619,1740611462675,-24716.62838521,0.00049863,33]
[354673620,1740611462687,-1790.0,0.00049863,33]
[354673621,1740611462965,-5000.0,0.00049315,120]
[354673622,1740611462975,-5000.0,0.00049315,120]
[354673623,1740611462984,-4044.84711421,0.00049315,120]
[354673624,1740611462995,-955.15288579,0.00049315,120]
[354673625,1740611463004,-351.191546,0.00049589,120]
[354673626,1740611463014,-351.191546,0.00049589,120]
[354673627,1740611463023,-45385.00321772,0.00049863,33]
[354673628,1740611463032,-9436.95390915,0.00049863,120]
[354673629,1740611463041,-151.0,0.00049863,3]
[354673630,1740611463051,-529.938318,0.00049863,30]
[354673631,1740611463060,-1305.01,0.00049863,120]
[354673632,1740611463070,-202.543124,0.00049863,120]
[354673633,1740611463079,-202.543124,0.00049863,120]
[354673634,1740611463088,-151.0,0.00049863,120]
[354673635,1740611463098,-500.0,0.00049863,120]
[354673636,1740611463107,-1808.84,0.00049863,120]
[354673637,1740611463118,-500.0,0.00049863,120]
[354673638,1740611463127,-500.0,0.00049863,120]
[354673639,1740611463137,-500.0,0.00049863,120]
[354673640,1740611463146,-398.81115483,0.00049863,120]
[354673641,1740611463156,-500.0,0.00049863,120]
[354673642,1740611463166,-878.8,0.00049863,120]
[354673643,1740611463175,-721.08,0.00049863,120]
[354673644,1740611463184,-500.0,0.00049863,120]
[354673645,1740611463194,-151.0,0.00049863,120]
[354673646,1740611463204,-500.0,0.00049863,120]
[354673647,1740611463213,-500.0,0.00049863,120]
[354673648,1740611463223,-184.121902,0.00049863,120]
[354673649,1740611463232,-500.0,0.00049863,120]
[354673650,1740611463242,-638.14,0.00049863,120]
[354673651,1740611463252,-184.121902,0.00049863,120]
[354673652,1740611463261,-894.39,0.00049863,120]
[354673653,1740611463270,-863.26,0.00049863,120]
[354673654,1740611463281,-500.0,0.00049863,120]
[354673655,1740611463292,-500.0,0.00049863,120]
[354673656,1740611463302,-500.0,0.00049863,120]
[354673657,1740611463312,-500.0,0.00049863,120]
[354673658,1740611463322,-500.0,0.00049863,120]
[354673659,1740611463333,-151.0,0.00049863,120]
[354673660,1740611463342,-151.0,0.00049863,120]
[354673661,1740611463352,-151.0,0.00049863,120]
[354673662,1740611463362,-151.0,0.00049863,120]
[354673663,1740611463372,-500.0,0.00049863,120]
[354673664,1740611463382,-500.0,0.00049863,120]
[354673665,1740611463392,-1032.35,0.00049863,120]
[354673666,1740611463401,-151.0,0.00049863,120]
[354673667,1740611463411,-157.899175,0.00049863,120]
[354673668,1740611463421,-151.0,0.00049863,120]
[354673669,1740611463430,-151.0,0.00049863,120]
[354673670,1740611463440,-237.27817,0.00049863,120]
[354673671,1740611463449,-500.0,0.00049863,120]
[354673672,1740611463459,-1386.303169,0.00049863,120]
[354673673,1740611463469,-1386.303169,0.00049863,120]
[354673674,1740611463479,-1386.303169,0.00049863,120]
[354673675,1740611463489,-1386.303169,0.00049863,120]
[354673676,1740611463498,-576.66,0.00049863,120]
[354673677,1740611463508,-500.0,0.00049863,120]
[354673678,1740611463517,-500.0,0.00049863,120]
[354673679,1740611463527,-300.0,0.00049863,120]
[354673680,1740611463536,-2909.135425,0.00049863,120]
[354673681,1740611463545,-500.0,0.00049863,120]
[354673682,1740611463555,-2909.135425,0.00049863,120]
[354673683,1740611463564,-694.57,0.00049863,120]
[354673684,1740611463574,-1458.66,0.00049863,120]
[354673685,1740611463583,-500.0,0.00049863,120]
[354673686,1740611463593,-558.29,0.00049863,120]
[354673687,1740611463603,-212.80821458,0.00049863,120]
[354673688,1740611463613,-1101.67,0.00049863,120]
[354673689,1740611463624,-500.0,0.00049863,120]
[354673690,1740611463633,-222.17931346,0.00049863,120]
[354673691,1740611463643,-278.38996,0.00049863,120]
[354673692,1740611463652,-364.037634,0.00049863,120]
[354673693,1740611463662,-829.08,0.00049863,120]
[354673694,1740611463672,-537.29299538,0.00049863,120]
[354673695,1740611463682,-364.037634,0.00049863,120]
[354673696,1740611463691,-500.0,0.00049863,120]
[354673697,1740611463701,-1096.28,0.00049863,120]
[354673698,1740611463710,-151.0,0.00049863,120]
[354673699,1740611463720,-151.0,0.00049863,120]
[354673700,1740611463730,-151.0,0.00049863,120]
[354673701,1740611463740,-500.0,0.00049863,120]
[354673702,1740611463750,-151.0,0.00049863,120]
[354673703,1740611463875,-500.94,0.00049863,120]
[354673704,1740611463886,-500.0,0.00049863,120]
[354673705,1740611463896,-500.0,0.00049863,120]
[354673706,1740611463906,-500.0,0.00049863,120]
[354673707,1740611463916,-500.0,0.00049863,120]
[354673708,1740611463926,-151.0,0.00049863,120]
[354673709,1740611463936,-500.0,0.00049863,120]
[354673710,1740611463946,-530.31,0.00049863,120]
[354673711,1740611463955,-500.0,0.00049863,120]
[354673712,1740611463965,-981.9,0.00049863,120]
[354673713,1740611463975,-500.0,0.00049863,120]
[354673714,1740611463986,-500.0,0.00049863,120]
[354673715,1740611463995,-500.0,0.00049863,120]
[354673716,1740611464006,-500.0,0.00049863,120]
[354673717,1740611464015,-2014.56,0.00049863,120]
[354673718,1740611464025,-500.0,0.00049863,120]
[354673719,1740611464034,-500.0,0.00049863,120]
[354673720,1740611464043,-574.17,0.00049863,120]
[354673721,1740611464053,-981.59,0.00049863,120]
[354673722,1740611464063,-500.0,0.00049863,120]
[354673723,1740611464073,-500.0,0.00049863,120]
[354673724,1740611464083,-500.0,0.00049863,120]
[354673725,1740611464093,-151.0,0.00049863,120]
[354673726,1740611464102,-500.0,0.00049863,120]
[354673727,1740611464112,-500.0,0.00049863,120]
[354673728,1740611464123,-578.07,0.00049863,120]
[354673729,1740611464133,-500.0,0.00049863,120]
[354673730,1740611464142,-500.0,0.00049863,120]
[354673731,1740611464153,-500.0,0.00049863,120]
[354673732,1740611464163,-745.74,0.00049863,120]
[354673733,1740611464173,-500.0,0.00049863,120]
[354673734,1740611464182,-500.0,0.00049863,120]
[354673735,1740611464192,-500.0,0.00049863,120]
[354673736,1740611464201,-500.0,0.00049863,120]
[354673737,1740611464211,-200.0,0.00049863,7]
[354673738,1740611464220,-789.29,0.00049863,120]
[354673739,1740611464230,-864.99,0.00049863,120]
[354673740,1740611464240,-1234.71,0.00049863,120]
[354673741,1740611464250,-547.065136,0.00049863,120]
[354673742,1740611464260,-958.21,0.00049863,120]
[354673743,1740611464270,-547.065136,0.00049863,120]
[354673744,1740611464281,-500.0,0.00049863,120]
[354673745,1740611464292,-500.0,0.00049863,120]
[354673746,1740611464303,-3132.89,0.00049863,120]
[354673747,1740611464312,-500.0,0.00049863,120]
[354673748,1740611464321,-500.0,0.00049863,120]
[354673749,1740611464331,-547.065136,0.00049863,120]
[354673750,1740611464341,-547.065136,0.00049863,120]
[354673751,1740611464351,-417.18870941,0.00049863,120]
[354673752,1740611464360,-731.12,0.00049863,120]
[354673753,1740611464376,-500.0,0.00049863,120]
[354673754,1740611464386,-2441.42,0.00049863,120]
[354673755,1740611464396,-2284.54,0.00049863,120]
[354673756,1740611464405,-524.95151614,0.00049863,120]
[354673757,1740611464414,-500.0,0.00049863,120]
[354673758,1740611464424,-500.0,0.00049863,120]
[354673759,1740611464433,-604.79,0.00049863,120]
[354673760,1740611464443,-500.0,0.00049863,120]
[354673761,1740611464452,-3604.07,0.00049863,120]
[354673762,1740611464462,-1337.13,0.00049863,120]
[354673763,1740611464472,-500.0,0.00049863,120]
[354673764,1740611464481,-500.0,0.00049863,120]
[354673765,1740611464491,-585.13844355,0.00049863,120]
[354673766,1740611464500,-500.0,0.00049863,120]
[354673767,1740611464509,-500.0,0.00049863,120]
[354673768,1740611464519,-500.0,0.00049863,120]
[354673769,1740611464529,-500.0,0.00049863,120]
[354673770,1740611464539,-744.61,0.00049863,120]
[354673771,1740611464548,-500.0,0.00049863,120]
[354673772,1740611464558,-500.0,0.00049863,120]
[354673773,1740611464567,-500.0,0.00049863,120]
[354673774,1740611464576,-500.0,0.00049863,120]
[354673775,1740611464585,-504.99898215,0.00049863,120]
[354673776,1740611464595,-500.0,0.00049863,120]
[354673777,1740611464605,-812.96,0.00049863,120]
[354673778,1740611464615,-500.0,0.00049863,120]
[354673779,1740611464626,-500.0,0.00049863,120]
[354673780,1740611464635,-500.0,0.00049863,120]
[354673781,1740611464645,-740.91,0.00049863,120]
[354673782,1740611464654,-1087.562267,0.00049863,120]
[354673783,1740611464663,-500.0,0.00049863,120]
[354673784,1740611464672,-500.0,0.00049863,120]
[354673785,1740611464681,-500.0,0.00049863,120]
[354673786,1740611464690,-1087.562267,0.00049863,120]
[354673787,1740611464699,-1912.48,0.00049863,120]
[354673788,1740611464709,-500.0,0.00049863,120]
[354673789,1740611464718,-500.0,0.00049863,120]
[354673790,1740611464728,-500.0,0.00049863,120]
[354673791,1740611464738,-820.06,0.00049863,120]
[354673792,1740611464747,-645.473546,0.00049863,120]
[354673793,1740611464756,-500.0,0.00049863,120]
[354673794,1740611464766,-500.0,0.00049863,120]
[354673795,1740611464775,-1926.16,0.00049863,120]
[354673796,1740611464784,-645.473546,0.00049863,120]
[354673797,1740611464793,-500.0,0.00049863,120]
[354673798,1740611464802,-840.78,0.00049863,120]
[354673799,1740611464812,-1825.54,0.00049863,120]
[354673800,1740611464821,-500.0,0.00049863,120]
[354673801,1740611464830,-3630.41,0.00049863,120]
[354673802,1740611464839,-1759.49,0.00049863,120]
[354673803,1740611464849,-500.0,0.00049863,120]
[354673804,1740611464858,-1909.41,0.00049863,120]
[354673805,1740611464870,-802.59,0.00049863,120]
[354673806,1740611464880,-500.0,0.00049863,120]
[354673807,1740611464888,-500.0,0.00049863,120]
[354673808,1740611464898,-1679.68,0.00049863,120]
[354673809,1740611464907,-1833.32,0.00049863,120]
[354673810,1740611464916,-500.0,0.00049863,120]
[354673811,1740611464926,-500.0,0.00049863,120]
[354673812,1740611464935,-861.71,0.00049863,120]
[354673813,1740611464945,-795.48,0.00049863,120]
[354673814,1740611464954,-500.0,0.00049863,120]
[354673815,1740611464963,-814.85,0.00049863,120]
[354673816,1740611464973,-709.72,0.00049863,120]
[354673817,1740611464982,-500.0,0.00049863,120]
[354673818,1740611464991,-1047.97,0.00049863,120]
[354673819,1740611465000,-2603.14,0.00049863,120]
[354673820,1740611465010,-543.495525,0.00049863,120]
[354673821,1740611465019,-543.495525,0.00049863,120]
[354673822,1740611465029,-500.0,0.00049863,120]
[354673823,1740611465038,-500.0,0.00049863,120]
[354673824,1740611465046,-543.495525,0.00049863,120]
[354673825,1740611465055,-543.495525,0.00049863,120]
[354673826,1740611465064,-1782.86,0.00049863,120]
[354673827,1740611465074,-1625.3,0.00049863,120]
[354673828,1740611465083,-1475.86,0.00049863,120]
[354673829,1740611465092,-896.39,0.00049863,120]
[354673830,1740611465101,-585.69,0.00049863,120]
[354673831,1740611465110,-670.61,0.00049863,120]
[354673832,1740611465120,-727.2,0.00049863,120]
[354673833,1740611465130,-151.0,0.00049863,120]
[354673834,1740611465139,-500.0,0.00049863,120]
[354673835,1740611465149,-533.28,0.00049863,120]
[354673836,1740611465158,-151.0,0.00049863,120]
[354673837,1740611465167,-500.0,0.00049863,120]
[354673838,1740611465177,-151.0,0.00049863,120]
[354673839,1740611465187,-500.0,0.00049863,120]
[354673840,1740611465196,-977.14,0.00049863,120]
[354673841,1740611465205,-151.0,0.00049863,120]
[354673842,1740611465214,-1376.25,0.00049863,120]
[354673843,1740611465222,-578.58,0.00049863,120]
[354673844,1740611465231,-500.0,0.00049863,120]
[354673845,1740611465240,-1319.48,0.00049863,120]
[354673846,1740611465249,-759.45,0.00049863,120]
[354673847,1740611465259,-151.0,0.00049863,120]
[354673848,1740611465268,-151.0,0.00049863,120]